[Event "Titled Tuesday Blitz January 18 2022"]
[White "Tsvetkov, Andrey"]
[Black "Yurovskykh, Oleksandr"]
[WhiteFideId "34139360"]
[BlackFideId "14134020"]
[WhiteElo "2280"]
[BlackElo "2292"]
[Result "1-0"]
[Round "07"]
[TimeControl "180+1"]
[Date "2022.01.18"]
[WhiteClock "0:00:35"]
[BlackClock "0:00:10"]

1. g4 {[%clk 0:03:00]}  d5 {[%clk 0:02:51]} 2. Bg2 {[%clk 0:03:01]}  c6 {[%clk 0:02:50]} 3. g5 {[%clk 0:03:00]}  e5 {[%clk 0:02:47]} 4. d4 {[%clk 0:03:00]}  e4 {[%clk 0:02:32]} 5. c4 {[%clk 0:03:00]}  Be6 {[%clk 0:02:29]} 6. Nc3 {[%clk 0:02:59]}  Na6 {[%clk 0:02:22]} 7. h4 {[%clk 0:02:59]}  Bd6 {[%clk 0:02:16]} 8. Nh3 {[%clk 0:02:59]}  Ne7 {[%clk 0:02:15]} 9. Nf4 {[%clk 0:02:59]}  Qb8 {[%clk 0:02:06]} 10. Nxe6 {[%clk 0:02:44]}  fxe6 {[%clk 0:02:06]} 11. Bh3 {[%clk 0:02:45]}  Qc8 {[%clk 0:01:43]} 12. cxd5 {[%clk 0:02:45]}  cxd5 {[%clk 0:01:38]} 13. Qa4+ {[%clk 0:02:46]}  Kf7 {[%clk 0:01:36]} 14. Bd2 {[%clk 0:02:44]}  Qc6 {[%clk 0:01:29]} 15. Qb3 {[%clk 0:02:35]}  Qb6 {[%clk 0:01:24]} 16. Qxb6 {[%clk 0:02:01]}  axb6 {[%clk 0:01:25]} 17. f3 {[%clk 0:02:01]}  exf3 {[%clk 0:01:20]} 18. O-O {[%clk 0:02:00]}  g6 {[%clk 0:01:15]} 19. Rxf3+ {[%clk 0:01:53]}  Nf5 {[%clk 0:01:15]} 20. e4 {[%clk 0:01:53]}  dxe4 {[%clk 0:01:15]} 21. Nxe4 {[%clk 0:01:54]}  Be7 {[%clk 0:01:13]} 22. d5 {[%clk 0:01:52]}  Nc5 {[%clk 0:01:08]} 23. dxe6+ {[%clk 0:01:50]}  Kxe6 {[%clk 0:01:02]} 24. Ng3 {[%clk 0:01:50]}  Bd6 {[%clk 0:00:45]} 25. Nxf5 {[%clk 0:01:34]}  gxf5 {[%clk 0:00:45]} 26. Rxf5 {[%clk 0:01:29]}  Ke7 {[%clk 0:00:21]} 27. Bc3 {[%clk 0:01:22]}  Rhf8 {[%clk 0:00:16]} 28. Bf6+ {[%clk 0:01:20]}  Kf7 {[%clk 0:00:11]} 29. Rd1 {[%clk 0:01:13]}  Be7 {[%clk 0:00:08]} 30. Bc3+ {[%clk 0:00:46]}  Kg8 {[%clk 0:00:07]} 31. Re5 {[%clk 0:00:47]}  Rae8 {[%clk 0:00:06]} 32. Rde1 {[%clk 0:00:42]}  Kf7 {[%clk 0:00:04]} 33. Bf5 {[%clk 0:00:34]}  Bd6 {[%clk 0:00:02]} 34. Rxe8 {[%clk 0:00:34]}  Rxe8 {[%clk 0:00:03]} 35. Rxe8 {[%clk 0:00:34]}  Kxe8 {[%clk 0:00:04]} 36. Bxh7 {[%clk 0:00:35]}  Bg3 {[%clk 0:00:04]} 37. g6 {[%clk 0:00:34]}  Ne6 {[%clk 0:00:03]} 38. g7 {[%clk 0:00:33]}  Nxg7 {[%clk 0:00:03]} 39. Bxg7 {[%clk 0:00:34]}  Bxh4 {[%clk 0:00:04]} 40. Bd4 {[%clk 0:00:34]}  Bd8 {[%clk 0:00:03]} 41. Be4 {[%clk 0:00:35]}  Kd7 {[%clk 0:00:02]} 42. Bxb7 {[%clk 0:00:35]}  Kc7 {[%clk 0:00:03]} 43. Be4 {[%clk 0:00:35]}  Be7 {[%clk 0:00:03]} 44. Kf2 {[%clk 0:00:36]}  b5 {[%clk 0:00:03]} 45. Ke3 {[%clk 0:00:36]}  b4 {[%clk 0:00:03]} 46. b3 {[%clk 0:00:36]}  Bd6 {[%clk 0:00:02]} 47. Kd3 {[%clk 0:00:37]}  Be7 {[%clk 0:00:02]} 48. Kc4 {[%clk 0:00:38]}  Bf8 {[%clk 0:00:02]} 49. Bc5 {[%clk 0:00:39]}  Bg7 {[%clk 0:00:03]} 50. Bxb4 {[%clk 0:00:39]}  Be5 {[%clk 0:00:03]} 51. Bc3 {[%clk 0:00:40]}  Bf4 {[%clk 0:00:04]} 52. b4 {[%clk 0:00:40]}  Kb6 {[%clk 0:00:04]} 53. a4 {[%clk 0:00:41]}  Ka7 {[%clk 0:00:04]} 54. Bd4+ {[%clk 0:00:42]}  Kb8 {[%clk 0:00:04]} 55. a5 {[%clk 0:00:43]}  Bh2 {[%clk 0:00:04]} 56. Bc5 {[%clk 0:00:43]}  Kc7 {[%clk 0:00:04]} 57. Kb5 {[%clk 0:00:44]}  Kb8 {[%clk 0:00:05]} 58. Bb6 {[%clk 0:00:44]}  Bd6 {[%clk 0:00:05]} 59. a6 {[%clk 0:00:45]}  Kc8 {[%clk 0:00:03]} 60. Bc6 {[%clk 0:00:45]}  Be5 {[%clk 0:00:03]} 61. a7 {[%clk 0:00:46]}  Bb8 {[%clk 0:00:03]} 62. axb8=Q+ {[%clk 0:00:37]}  Kxb8 {[%clk 0:00:04]} 63. Kc5 {[%clk 0:00:38]}  Kc8 {[%clk 0:00:04]} 64. Bh1 {[%clk 0:00:37]}  Kb8 {[%clk 0:00:05]} 65. Kc6 {[%clk 0:00:37]}  Kc8 {[%clk 0:00:06]} 66. Bg2 {[%clk 0:00:37]}  Kb8 {[%clk 0:00:07]} 67. b5 {[%clk 0:00:37]}  Kc8 {[%clk 0:00:08]} 68. Bf3 {[%clk 0:00:37]}  Kb8 {[%clk 0:00:09]} 69. Bc7+ {[%clk 0:00:38]}  Kc8 {[%clk 0:00:10]} 70. Bg4# {[%clk 0:00:35]} 1-0


[Site "https://www.chess.com"]

[Event "Titled Tuesday Blitz January 18 2022"]
[White "Wong, Yinn Long"]
[Black "Maksimovic, Bojan"]
[WhiteFideId "5707684"]
[BlackFideId "14408120"]
[WhiteElo "2845"]
[BlackElo "2753"]
[Result "0-1"]
[Round "07"]
[TimeControl "180+1"]
[Date "2022.01.18"]
[WhiteClock "0:00:03"]
[BlackClock "0:00:04"]

1. e4 {[%clk 0:03:00]}  c5 {[%clk 0:03:00]} 2. Nc3 {[%clk 0:03:00]}  Nc6 {[%clk 0:03:00]} 3. f4 {[%clk 0:03:01]}  g6 {[%clk 0:03:00]} 4. Nf3 {[%clk 0:03:01]}  Bg7 {[%clk 0:03:00]} 5. Bb5 {[%clk 0:03:02]}  Nd4 {[%clk 0:03:00]} 6. O-O {[%clk 0:03:03]}  a6 {[%clk 0:02:52]} 7. Bc4 {[%clk 0:03:03]}  b5 {[%clk 0:02:44]} 8. Bd5 {[%clk 0:03:01]}  Rb8 {[%clk 0:02:45]} 9. d3 {[%clk 0:03:02]}  e6 {[%clk 0:02:42]} 10. Bb3 {[%clk 0:03:02]}  Nxb3 {[%clk 0:02:42]} 11. axb3 {[%clk 0:03:01]}  Ne7 {[%clk 0:02:41]} 12. Be3 {[%clk 0:02:56]}  Qc7 {[%clk 0:02:32]} 13. d4 {[%clk 0:02:32]}  Bb7 {[%clk 0:01:17]} 14. dxc5 {[%clk 0:02:20]}  b4 {[%clk 0:01:17]} 15. Bd4 {[%clk 0:02:10]}  f6 {[%clk 0:01:18]} 16. Na4 {[%clk 0:02:06]}  Bxe4 {[%clk 0:01:16]} 17. Qe2 {[%clk 0:01:59]}  Bb7 {[%clk 0:01:13]} 18. Nb6 {[%clk 0:01:31]}  O-O {[%clk 0:01:12]} 19. Qd2 {[%clk 0:01:21]}  Nf5 {[%clk 0:00:56]} 20. Nc4 {[%clk 0:00:58]}  Rbc8 {[%clk 0:00:31]} 21. c3 {[%clk 0:00:53]}  bxc3 {[%clk 0:00:30]} 22. bxc3 {[%clk 0:00:54]}  Rce8 {[%clk 0:00:21]} 23. Rae1 {[%clk 0:00:44]}  Kh8 {[%clk 0:00:21]} 24. b4 {[%clk 0:00:44]}  Bxf3 {[%clk 0:00:20]} 25. Rxf3 {[%clk 0:00:44]}  e5 {[%clk 0:00:21]} 26. fxe5 {[%clk 0:00:40]}  fxe5 {[%clk 0:00:22]} 27. Be3 {[%clk 0:00:40]}  e4 {[%clk 0:00:22]} 28. Rff1 {[%clk 0:00:36]}  Qc6 {[%clk 0:00:18]} 29. Bf4 {[%clk 0:00:32]}  Qe6 {[%clk 0:00:18]} 30. Ne3 {[%clk 0:00:26]}  Nxe3 {[%clk 0:00:15]} 31. Bxe3 {[%clk 0:00:27]}  Qc4 {[%clk 0:00:05]} 32. Rxf8+ {[%clk 0:00:21]}  Rxf8 {[%clk 0:00:06]} 33. Rc1 {[%clk 0:00:21]}  Qd3 {[%clk 0:00:04]} 34. Qxd3 {[%clk 0:00:07]}  exd3 {[%clk 0:00:05]} 35. Bd2 {[%clk 0:00:05]}  Re8 {[%clk 0:00:02]} 36. Re1 {[%clk 0:00:04]}  Rxe1+ {[%clk 0:00:03]} 37. Bxe1 {[%clk 0:00:05]}  Bh6 {[%clk 0:00:03]} 38. b5 {[%clk 0:00:02]}  axb5 {[%clk 0:00:04]} 39. Bf2 {[%clk 0:00:03]}  d2 {[%clk 0:00:04]} 40. Bd4+ {[%clk 0:00:04]}  Kg8 {[%clk 0:00:04]} 41. h4 {[%clk 0:00:03]}  d1=Q+ {[%clk 0:00:04]} 0-1


[Site "https://www.chess.com"]

[Event "Titled Tuesday Blitz January 18 2022"]
[White "Zotova, Anastasia"]
[Black "Milchev, Nikolay"]
[WhiteFideId "34124907"]
[BlackFideId "2906090"]
[WhiteElo "1860"]
[BlackElo "2449"]
[Result "0-1"]
[Round "07"]
[TimeControl "180+1"]
[Date "2022.01.18"]
[WhiteClock "0:01:46"]
[BlackClock "0:01:49"]

1. d4 {[%clk 0:03:00]}  Nf6 {[%clk 0:02:59]} 2. Bg5 {[%clk 0:02:55]}  c5 {[%clk 0:02:59]} 3. e3 {[%clk 0:02:50]}  Ne4 {[%clk 0:02:56]} 4. Bh4 {[%clk 0:02:49]}  d5 {[%clk 0:02:55]} 5. Nf3 {[%clk 0:02:41]}  Nc6 {[%clk 0:02:49]} 6. Nbd2 {[%clk 0:02:40]}  Nxd2 {[%clk 0:02:47]} 7. Qxd2 {[%clk 0:02:39]}  Qb6 {[%clk 0:02:47]} 8. c3 {[%clk 0:02:38]}  e6 {[%clk 0:02:46]} 9. Be2 {[%clk 0:02:34]}  Bd6 {[%clk 0:02:46]} 10. O-O {[%clk 0:02:33]}  O-O {[%clk 0:02:45]} 11. dxc5 {[%clk 0:02:33]}  Bxc5 {[%clk 0:02:43]} 12. Nd4 {[%clk 0:02:33]}  e5 {[%clk 0:02:40]} 13. Nb3 {[%clk 0:02:25]}  Be6 {[%clk 0:02:40]} 14. Nxc5 {[%clk 0:02:24]}  Qxc5 {[%clk 0:02:41]} 15. Rac1 {[%clk 0:02:23]}  f6 {[%clk 0:02:39]} 16. b3 {[%clk 0:02:19]}  Rfd8 {[%clk 0:02:38]} 17. Qb2 {[%clk 0:02:14]}  Rac8 {[%clk 0:02:37]} 18. c4 {[%clk 0:02:13]}  d4 {[%clk 0:02:35]} 19. exd4 {[%clk 0:02:09]}  Rxd4 {[%clk 0:02:28]} 20. Bf3 {[%clk 0:02:06]}  Rxh4 {[%clk 0:02:27]} 21. Bxc6 {[%clk 0:02:01]}  Qxc6 {[%clk 0:02:14]} 22. Rfd1 {[%clk 0:02:00]}  a5 {[%clk 0:02:07]} 23. c5 {[%clk 0:01:59]}  Rg4 {[%clk 0:01:59]} 24. g3 {[%clk 0:01:48]}  Qe4 {[%clk 0:01:53]} 25. Rc4 {[%clk 0:01:46]}  Bxc4 {[%clk 0:01:49]} 0-1


[Site "https://www.chess.com"]

[Event "Titled Tuesday Blitz January 18 2022"]
[White "Aloma Vidal, Robert"]
[Black "Van der Werf, Mark"]
[WhiteFideId "2260409"]
[BlackFideId "1000470"]
[WhiteElo "2435"]
[BlackElo "2398"]
[Result "1-0"]
[Round "08"]
[TimeControl "180+1"]
[Date "2022.01.18"]
[WhiteClock "0:00:12"]
[BlackClock "0:00:01"]

1. e4 {[%clk 0:03:00]}  d6 {[%clk 0:03:00]} 2. d4 {[%clk 0:03:00]}  Nf6 {[%clk 0:03:00]} 3. Nc3 {[%clk 0:03:00]}  g6 {[%clk 0:03:00]} 4. h4 {[%clk 0:02:54]}  h5 {[%clk 0:02:56]} 5. Nf3 {[%clk 0:02:51]}  Bg4 {[%clk 0:02:54]} 6. Be2 {[%clk 0:02:46]}  Nc6 {[%clk 0:02:48]} 7. d5 {[%clk 0:02:45]}  Bxf3 {[%clk 0:02:47]} 8. Bxf3 {[%clk 0:02:45]}  Ne5 {[%clk 0:02:46]} 9. Be2 {[%clk 0:02:45]}  Bg7 {[%clk 0:02:45]} 10. Bg5 {[%clk 0:02:40]}  c6 {[%clk 0:02:41]} 11. O-O {[%clk 0:02:40]}  O-O {[%clk 0:02:39]} 12. g3 {[%clk 0:02:27]}  Qb6 {[%clk 0:02:36]} 13. Rb1 {[%clk 0:02:27]}  a5 {[%clk 0:02:31]} 14. Kg2 {[%clk 0:02:26]}  a4 {[%clk 0:02:29]} 15. a3 {[%clk 0:02:13]}  Qa5 {[%clk 0:02:27]} 16. f3 {[%clk 0:02:08]}  Rac8 {[%clk 0:02:23]} 17. Qd4 {[%clk 0:01:56]}  cxd5 {[%clk 0:02:10]} 18. exd5 {[%clk 0:01:54]}  Ra8 {[%clk 0:01:54]} 19. Rfd1 {[%clk 0:01:44]}  Rfc8 {[%clk 0:01:45]} 20. Qb4 {[%clk 0:01:43]}  Qxb4 {[%clk 0:01:43]} 21. axb4 {[%clk 0:01:44]}  a3 {[%clk 0:01:42]} 22. Bd2 {[%clk 0:00:34]}  axb2 {[%clk 0:01:30]} 23. Rxb2 {[%clk 0:00:35]}  Nc4 {[%clk 0:01:26]} 24. Bxc4 {[%clk 0:00:36]}  Rxc4 {[%clk 0:01:25]} 25. Rb3 {[%clk 0:00:37]}  Rac8 {[%clk 0:01:22]} 26. Be1 {[%clk 0:00:37]}  Nd7 {[%clk 0:01:20]} 27. Rd3 {[%clk 0:00:37]}  Ne5 {[%clk 0:01:05]} 28. Re3 {[%clk 0:00:37]}  Kf8 {[%clk 0:00:53]} 29. Kh3 {[%clk 0:00:35]}  Nd7 {[%clk 0:00:50]} 30. f4 {[%clk 0:00:33]}  Nf6 {[%clk 0:00:47]} 31. Rd3 {[%clk 0:00:28]}  Ng4 {[%clk 0:00:47]} 32. Kg2 {[%clk 0:00:28]}  Ra8 {[%clk 0:00:41]} 33. Kf3 {[%clk 0:00:27]}  Ra1 {[%clk 0:00:38]} 34. Ke2 {[%clk 0:00:19]}  Nh6 {[%clk 0:00:19]} 35. Bd2 {[%clk 0:00:18]}  Nf5 {[%clk 0:00:18]} 36. b5 {[%clk 0:00:15]}  Rg1 {[%clk 0:00:16]} 37. Kf2 {[%clk 0:00:15]}  Rh1 {[%clk 0:00:16]} 38. Kg2 {[%clk 0:00:15]}  Ra1 {[%clk 0:00:15]} 39. b6 {[%clk 0:00:14]}  Bd4 {[%clk 0:00:13]} 40. Ne2 {[%clk 0:00:13]}  Bc5 {[%clk 0:00:11]} 41. c3 {[%clk 0:00:13]}  Ra2 {[%clk 0:00:10]} 42. Kf3 {[%clk 0:00:13]}  Ra6 {[%clk 0:00:08]} 43. Rb1 {[%clk 0:00:13]}  Rxb6 {[%clk 0:00:08]} 44. Rxb6 {[%clk 0:00:13]}  Bxb6 {[%clk 0:00:07]} 45. Be1 {[%clk 0:00:13]}  Bc5 {[%clk 0:00:07]} 46. Rd1 {[%clk 0:00:13]}  Ra4 {[%clk 0:00:07]} 47. Rb1 {[%clk 0:00:14]}  b6 {[%clk 0:00:07]} 48. Bd2 {[%clk 0:00:14]}  Ra2 {[%clk 0:00:06]} 49. Be1 {[%clk 0:00:14]}  Rc2 {[%clk 0:00:06]} 50. Ra1 {[%clk 0:00:14]}  Kg7 {[%clk 0:00:05]} 51. Rb1 {[%clk 0:00:12]}  Ne3 {[%clk 0:00:03]} 52. Ke4 {[%clk 0:00:11]}  f5+ {[%clk 0:00:01]} 53. Kd3 {[%clk 0:00:12]} 1-0


[Site "https://www.chess.com"]

[Event "Titled Tuesday Blitz January 18 2022"]
[White "Ambartsumova, Karina"]
[Black "Bauer, Thomas"]
[WhiteFideId "4166299"]
[BlackFideId "1639293"]
[WhiteElo "2262"]
[BlackElo "2220"]
[Result "0-1"]
[Round "08"]
[TimeControl "180+1"]
[Date "2022.01.18"]
[WhiteClock "0:00:04"]
[BlackClock "0:01:12"]

1. c4 {[%clk 0:03:00]}  g6 {[%clk 0:02:59]} 2. d4 {[%clk 0:02:59]}  Bg7 {[%clk 0:02:58]} 3. Nf3 {[%clk 0:02:57]}  d6 {[%clk 0:02:58]} 4. Nc3 {[%clk 0:02:56]}  c6 {[%clk 0:02:55]} 5. g3 {[%clk 0:02:54]}  e5 {[%clk 0:02:55]} 6. Bg2 {[%clk 0:02:49]}  Ne7 {[%clk 0:02:53]} 7. dxe5 {[%clk 0:02:44]}  dxe5 {[%clk 0:02:53]} 8. Qxd8+ {[%clk 0:02:44]}  Kxd8 {[%clk 0:02:54]} 9. Bg5 {[%clk 0:02:40]}  f6 {[%clk 0:02:53]} 10. O-O-O+ {[%clk 0:02:38]}  Kc7 {[%clk 0:02:54]} 11. Be3 {[%clk 0:02:35]}  Na6 {[%clk 0:02:54]} 12. Ne4 {[%clk 0:02:10]}  Be6 {[%clk 0:02:50]} 13. b3 {[%clk 0:02:02]}  b6 {[%clk 0:02:48]} 14. Bd2 {[%clk 0:01:41]}  h6 {[%clk 0:02:41]} 15. Bc3 {[%clk 0:01:38]}  Rad8 {[%clk 0:02:38]} 16. Rxd8 {[%clk 0:01:21]}  Rxd8 {[%clk 0:02:37]} 17. Rd1 {[%clk 0:01:21]}  Rxd1+ {[%clk 0:02:37]} 18. Kxd1 {[%clk 0:01:22]}  b5 {[%clk 0:02:37]} 19. Ned2 {[%clk 0:01:10]}  Nc8 {[%clk 0:02:29]} 20. cxb5 {[%clk 0:00:54]}  cxb5 {[%clk 0:02:29]} 21. Ne1 {[%clk 0:00:51]}  b4 {[%clk 0:02:20]} 22. Bb2 {[%clk 0:00:51]}  Nc5 {[%clk 0:02:17]} 23. Nc2 {[%clk 0:00:51]}  a5 {[%clk 0:02:13]} 24. Ne3 {[%clk 0:00:51]}  Nb6 {[%clk 0:02:08]} 25. f4 {[%clk 0:00:49]}  exf4 {[%clk 0:02:02]} 26. gxf4 {[%clk 0:00:50]}  a4 {[%clk 0:01:52]} 27. Bd4 {[%clk 0:00:35]}  axb3 {[%clk 0:01:46]} 28. Bxc5 {[%clk 0:00:35]}  bxa2 {[%clk 0:01:41]} 29. Bd4 {[%clk 0:00:35]}  Na4 {[%clk 0:01:35]} 30. Bd5 {[%clk 0:00:30]}  Nc3+ {[%clk 0:01:29]} 31. Bxc3 {[%clk 0:00:26]}  bxc3 {[%clk 0:01:28]} 32. Nb3 {[%clk 0:00:25]}  Bd7 {[%clk 0:01:16]} 33. Kc2 {[%clk 0:00:20]}  Ba4 {[%clk 0:01:16]} 34. Kxc3 {[%clk 0:00:04]}  Bxb3 {[%clk 0:01:12]} 0-1


[Site "https://www.chess.com"]

[Event "Titled Tuesday Blitz January 18 2022"]
[White "Artemenko, Oleg"]
[Black "Rodchenkov, Sergey D."]
[WhiteFideId "14201798"]
[BlackFideId "4168712"]
[WhiteElo "2287"]
[BlackElo "2306"]
[Result "0-1"]
[Round "08"]
[TimeControl "180+1"]
[Date "2022.01.18"]
[WhiteClock "0:01:09"]
[BlackClock "0:00:49"]

1. d4 {[%clk 0:03:00]}  d5 {[%clk 0:02:59]} 2. Nc3 {[%clk 0:03:00]}  Nf6 {[%clk 0:02:58]} 3. Bf4 {[%clk 0:02:59]}  a6 {[%clk 0:02:56]} 4. e3 {[%clk 0:02:54]}  e6 {[%clk 0:02:54]} 5. g4 {[%clk 0:02:52]}  c5 {[%clk 0:02:50]} 6. Bg2 {[%clk 0:02:51]}  Nc6 {[%clk 0:02:41]} 7. g5 {[%clk 0:02:51]}  Nd7 {[%clk 0:02:39]} 8. Nf3 {[%clk 0:02:51]}  Nb6 {[%clk 0:02:26]} 9. Ne2 {[%clk 0:02:50]}  Bd6 {[%clk 0:02:22]} 10. c3 {[%clk 0:02:48]}  Bxf4 {[%clk 0:02:14]} 11. Nxf4 {[%clk 0:02:49]}  c4 {[%clk 0:02:09]} 12. h4 {[%clk 0:02:46]}  Qc7 {[%clk 0:02:05]} 13. h5 {[%clk 0:02:43]}  Bd7 {[%clk 0:01:58]} 14. Qd2 {[%clk 0:02:37]}  O-O-O {[%clk 0:01:57]} 15. O-O-O {[%clk 0:02:36]}  Kb8 {[%clk 0:01:52]} 16. g6 {[%clk 0:02:36]}  f6 {[%clk 0:01:45]} 17. h6 {[%clk 0:02:34]}  hxg6 {[%clk 0:01:36]} 18. hxg7 {[%clk 0:02:33]}  Rhg8 {[%clk 0:01:34]} 19. Rh7 {[%clk 0:02:31]}  g5 {[%clk 0:01:29]} 20. Nh5 {[%clk 0:02:28]}  Be8 {[%clk 0:01:22]} 21. Nxf6 {[%clk 0:02:27]}  Bg6 {[%clk 0:01:22]} 22. Nxg8 {[%clk 0:02:15]}  Bxh7 {[%clk 0:01:21]} 23. Nf6 {[%clk 0:02:16]}  Qxg7 {[%clk 0:01:20]} 24. Nxh7 {[%clk 0:02:16]}  Qxh7 {[%clk 0:01:20]} 25. Nxg5 {[%clk 0:02:17]}  Qg6 {[%clk 0:01:15]} 26. f4 {[%clk 0:02:16]}  e5 {[%clk 0:01:13]} 27. Qc2 {[%clk 0:02:03]}  Qg8 {[%clk 0:01:12]} 28. Rh1 {[%clk 0:01:55]}  exf4 {[%clk 0:01:09]} 29. exf4 {[%clk 0:01:55]}  Rf8 {[%clk 0:01:06]} 30. Rh4 {[%clk 0:01:55]}  Nd8 {[%clk 0:00:59]} 31. Qe2 {[%clk 0:01:49]}  Rxf4 {[%clk 0:00:47]} 32. Rxf4 {[%clk 0:01:48]}  Qxg5 {[%clk 0:00:46]} 33. Qf2 {[%clk 0:01:48]}  Ne6 {[%clk 0:00:45]} 34. Kb1 {[%clk 0:01:30]}  Qxf4 {[%clk 0:00:46]} 35. Qe2 {[%clk 0:01:29]}  Qf5+ {[%clk 0:00:46]} 36. Ka1 {[%clk 0:01:29]}  Ka7 {[%clk 0:00:46]} 37. a3 {[%clk 0:01:29]}  Nf4 {[%clk 0:00:46]} 38. Qf3 {[%clk 0:01:29]}  Qg5 {[%clk 0:00:45]} 39. Bf1 {[%clk 0:01:29]}  Nd3 {[%clk 0:00:42]} 40. Bxd3 {[%clk 0:01:27]}  cxd3 {[%clk 0:00:43]} 41. Qxd3 {[%clk 0:01:27]}  Qc1+ {[%clk 0:00:43]} 42. Ka2 {[%clk 0:01:28]}  Nc4 {[%clk 0:00:43]} 43. Qe2 {[%clk 0:01:28]}  Qd2 {[%clk 0:00:42]} 44. Qxd2 {[%clk 0:01:27]}  Nxd2 {[%clk 0:00:43]} 45. b3 {[%clk 0:01:28]}  b5 {[%clk 0:00:42]} 46. Kb2 {[%clk 0:01:29]}  Kb6 {[%clk 0:00:43]} 47. Kc2 {[%clk 0:01:29]}  Ne4 {[%clk 0:00:43]} 48. Kd3 {[%clk 0:01:30]}  Nd6 {[%clk 0:00:43]} 49. Ke3 {[%clk 0:01:30]}  a5 {[%clk 0:00:43]} 50. Kf4 {[%clk 0:01:30]}  a4 {[%clk 0:00:43]} 51. bxa4 {[%clk 0:01:29]}  bxa4 {[%clk 0:00:44]} 52. Ke5 {[%clk 0:01:29]}  Kc6 {[%clk 0:00:45]} 53. Kf4 {[%clk 0:01:28]}  Nc4 {[%clk 0:00:45]} 54. Kf3 {[%clk 0:01:28]}  Nxa3 {[%clk 0:00:46]} 55. Ke3 {[%clk 0:01:29]}  Nc4+ {[%clk 0:00:47]} 56. Kd3 {[%clk 0:01:30]}  a3 {[%clk 0:00:47]} 57. Kc2 {[%clk 0:01:31]}  Kb5 {[%clk 0:00:48]} 58. Kb3 {[%clk 0:01:31]}  Ka5 {[%clk 0:00:48]} 59. Ka2 {[%clk 0:01:27]}  Ka4 {[%clk 0:00:49]} 60. Ka1 {[%clk 0:01:26]}  Kb3 {[%clk 0:00:49]} 61. Kb1 {[%clk 0:01:26]}  Kxc3 {[%clk 0:00:50]} 62. Ka2 {[%clk 0:01:26]}  Kxd4 {[%clk 0:00:51]} 63. Kb3 {[%clk 0:01:26]}  Kc5 {[%clk 0:00:51]} 64. Ka2 {[%clk 0:01:23]}  d4 {[%clk 0:00:52]} 65. Ka1 {[%clk 0:01:17]}  d3 {[%clk 0:00:52]} 66. Kb1 {[%clk 0:01:17]}  d2 {[%clk 0:00:52]} 67. Ka2 {[%clk 0:01:18]}  Kb4 {[%clk 0:00:49]} 68. Kb1 {[%clk 0:01:12]}  d1=Q+ {[%clk 0:00:49]} 69. Ka2 {[%clk 0:01:13]}  Qc2+ {[%clk 0:00:49]} 70. Ka1 {[%clk 0:01:09]}  Qb2# {[%clk 0:00:49]} 0-1


[Site "https://www.chess.com"]

[Event "Titled Tuesday Blitz January 18 2022"]
[White "Aydin, Gulenay"]
[Black "Iskusnyh, Sergei"]
[WhiteFideId "34557431"]
[BlackFideId "4120027"]
[WhiteElo "1429"]
[BlackElo "2492"]
[Result "0-1"]
[Round "08"]
[TimeControl "180+1"]
[Date "2022.01.18"]
[WhiteClock "0:00:16"]
[BlackClock "0:01:20"]

1. e4 {[%clk 0:03:00]}  e6 {[%clk 0:02:59]} 2. d4 {[%clk 0:03:00]}  d5 {[%clk 0:03:00]} 3. Nd2 {[%clk 0:03:01]}  c5 {[%clk 0:02:59]} 4. Ngf3 {[%clk 0:03:00]}  Nc6 {[%clk 0:02:58]} 5. exd5 {[%clk 0:03:00]}  exd5 {[%clk 0:02:58]} 6. Bb5 {[%clk 0:02:49]}  cxd4 {[%clk 0:02:58]} 7. Nxd4 {[%clk 0:02:48]}  Bd7 {[%clk 0:02:56]} 8. Nxc6 {[%clk 0:02:46]}  bxc6 {[%clk 0:02:56]} 9. Bd3 {[%clk 0:02:46]}  Bd6 {[%clk 0:02:51]} 10. O-O {[%clk 0:02:44]}  Nf6 {[%clk 0:02:50]} 11. Re1+ {[%clk 0:02:44]}  Be6 {[%clk 0:02:50]} 12. Bf5 {[%clk 0:02:43]}  O-O {[%clk 0:02:41]} 13. Bxe6 {[%clk 0:02:43]}  fxe6 {[%clk 0:02:41]} 14. Rxe6 {[%clk 0:02:43]}  Qc7 {[%clk 0:02:32]} 15. g3 {[%clk 0:02:38]}  Qd7 {[%clk 0:02:13]} 16. Re2 {[%clk 0:01:55]}  Qh3 {[%clk 0:01:31]} 17. Nf1 {[%clk 0:01:47]}  Ng4 {[%clk 0:01:26]} 18. Be3 {[%clk 0:01:35]}  Rf5 {[%clk 0:01:24]} 19. Qd3 {[%clk 0:01:16]}  Ne5 {[%clk 0:01:22]} 20. Qa6 {[%clk 0:00:25]}  Nf3+ {[%clk 0:01:20]} 21. Kh1 {[%clk 0:00:25]}  Rh5 {[%clk 0:01:20]} 22. Qxc6 {[%clk 0:00:18]}  Qxf1+ {[%clk 0:01:19]} 23. Rxf1 {[%clk 0:00:16]}  Rxh2# {[%clk 0:01:20]} 0-1


[Site "https://www.chess.com"]